Workbook

Sheet Лист1
A1: район | B1: Учреждение | C1: Количество детей по муниципальному заданию | J1: Общее количество сотрудников | K1: Кол-во сотрудников, имеющие высшую и первую кв.кактегории | M1: балл | O1: Количество педагогов, ставших победителями и призерами в профессиональных конкурсах | AC1: Выступление педагогов на семинарах, конференциях + публикации в газетах, журналах, СМИ | AQ1: Методические семинары, конференции, проводимые на базе учреждения | BE1: Участие ОО в конкурсах ОО | BM1: Грантовая активность (указывать количество конкурсов) | BQ1: Доступность и открытость | BV1: Безопасные условия (минус 1 балл за каждый случай) | BZ1: Обеспечение образовательного процесса | CG1: Результаты обучающихся | CU1: Городские мероприятия | DO1: Эффективность управления
C2: младший возраст (6/7-10 лет, 1-4 класс) | D2: доля | E2: средний возраст (11-15 лет, 5-9 класс) | F2: доля | G2: старший возраст (16-18 лет, 10-11 класс) | H2: доля | I2: общее количество детей | L2: доля | N2: место | O2: городской | P2: доля | Q2: балл | R2: Республиканский | S2: доля | T2: балл | U2: Всероссийский | V2: доля | W2: балл | X2: Международный | Y2: доля | Z2: балл | AA2: балл | AB2: место | AC2: городской | AD2: доля | AE2: балл | AF2: Республиканский | AG2: доля | AH2: балл | AI2: Всероссийский | AJ2: доля | AK2: балл | AL2: Международный | AM2: доля | AN2: балл | AO2: балл | AP2: место | AQ2: городской | AR2: доля | AS2: балл | AT2: Республиканский | AU2: доля | AV2: балл | AW2: Всероссийский | AX2: доля | AY2: балл | AZ2: Международный | BA2: доля | BB2: балл | BC2: балл | BD2: место | BE2: Городской, республиканский | BF2: балл | BG2: Всероссийский | BH2: балл | BI2: Международный | BJ2: балл | BK2: балл | BL2: место | BM2: Учреждения | BN2: Педагогов | BO2: балл | BP2: место | BQ2: Наличие публичного отчета | BR2: Наличие финансового отчета | BS2: Наличие оперативной информации | BT2: балл | BU2: место | BV2: Налииче детского травматизма | BW2: Наличие взрослого травматизма | BX2: балл | BY2: место | BZ2: Кол-во детей-инвалидов, ОВЗ | CA2: доля | CB2: балл | CC2: Количество реализуемых адаптированных программ для детей с ОВЗ, детей-инвалидов | CD2: балл | CE2: балл | CF2: место | CG2: городской | CH2: доля | CI2: балл | CJ2: Республиканский | CK2: доля | CL2: балл | CM2: Всероссийский | CN2: доля | CO2: балл | CP2: Международный | CQ2: доля | CR2: балл | CS2: балл | CT2: место | CU2: НВП | CV2: 9 Мая | CW2: День защиты детей | CX2: Сабантуй | CY2: Большая перемена | CZ2: Открытие и закрытие олимпиад | DA2: Новый год | DB2: день города и РТ | DC2: Иные городские мероприятия | DD2: балл | DE2: Организация и проведение мероприятий самим учреждением (р., г., респ., вс.) | DF2: район балл | DG2: город балл | DH2: респ балл | DI2: всерос балл | DJ2: балл | DK2: место | DL2: Объем средств, привлеченных за счет оказания платных услуг | DM2: балл | DN2: место | DO2: Наличие жалоб | DP2: Наличие дисциплинарных взысканий | DQ2: балл | DR2: место | DS2: итоговые баллы | DU2: итоговое место
B4: МБУДОЦДТАзино | C4: 1670 | D4: =C4*100/I4 -> 36.47 | E4: 2042 | F4: =E4*100/I4 -> 44.59 | G4: 867 | H4: =G4*100/I4 -> 18.93 | I4: =SUM(C4,E4,G4) -> 4579 | J4: 113 | K4: 74 | L4: =K4*100/J4 -> 65 | M4: 3 | N4: 1 | O4: 8 | P4: =O4*100/J4 -> 7.08 | Q4: =P4*2 -> 14.16 | R4: 23 | S4: =R4*100/J4 -> 20.35 | T4: =S4*2 -> 40.71 | U4: 58 | V4: =U4*100/J4 -> 51.33 | W4: =V4*3 -> 153.98 | X4: 27 | Y4: =X4*100/J4 -> 23.89 | Z4: =Y4*3 -> 71.68 | AA4: =Q4+T4+W4+Z4 -> 281 | AB4: 2 | AC4: 51 | AD4: =AC4*100/J4 -> 45.13 | AE4: =AD4*2 -> 90.27 | AF4: 68 | AG4: =AF4*100/J4 -> 60.18 | AH4: =AG4*2 -> 120.35 | AI4: 77 | AJ4: =AI4*100/J4 -> 68.14 | AK4: =AJ4*3 -> 204.42 | AL4: 101 | AM4: =AL4*100/J4 -> 89.38 | AN4: =AM4*3 -> 268.14 | AO4: =AE4+AH4+AK4+AN4 -> 683 | AP4: 1 | AQ4: 8 | AR4: =AQ4*100/J4 -> 7.08 | AS4: =AR4*2 -> 14.16 | AT4: 9 | AU4: =AT4*100/J4 -> 7.96 | AV4: =AU4*2 -> 15.93 | AW4: 0 | AX4: =AW4*100/J4 -> 0.00 | AY4: =AX4*3 -> 0.00 | AZ4: 0 | BA4: =AZ4*100/J4 -> 0.00 | BB4: =BA4*3 -> 0.00 | BC4: =AS4+AV4+AY4+BB4 -> 30 | BD4: 3 | BE4: 0 | BF4: =BE4*2 -> 0 | BG4: 2 | BH4: =BG4*3 -> 6 | BI4: 0 | BJ4: =BI4*4 -> 0 | BK4: =BF4+BH4+BJ4 -> 6 | BL4: 1 | BM4: 0 | BN4: 0 | BO4: =(BM4+BN4)*2 -> 0 | BP4: 3 | BQ4: 1 | BR4: 1 | BS4: 1 | BT4: =BQ4+BR4+BS4 -> 3 | BU4: 1 | BV4: 0 | BW4: 0 | BX4: 0 | BY4: 1 | BZ4: 0 | CA4: =BZ4*100/I4 -> 0 | CB4: 0 | CC4: 4 | CD4: 0 | CE4: =CB4+CD4 -> 0 | CF4: 5 | CG4: 81 | CH4: =CG4*100/I4 -> 1.768945185 | CI4: =CH4*2 -> 3.54 | CJ4: 139 | CK4: =CJ4*100/I4 -> 3.04 | CL4: =CK4*2 -> 6.07 | CM4: 144 | CN4: =CM4*100/I4 -> 3.14 | CO4: =CN4*3 -> 9.43 | CP4: 75 | CQ4: =CP4*100/I4 -> 1.64 | CR4: =CQ4*3 -> 4.91 | CS4: =CI4+CL4+CO4+CR4 -> 23.96 | CT4: 3 | CU4: 2 | CV4: 2 | CW4: 1 | CX4: 1 | CY4: 0 | CZ4: 0 | DA4: 3 | DB4: 2 | DC4: 11 | DD4: 0 | DE4: г.-11,респ.-11.р.-44, | DF4: 40 | DG4: 16 | DH4: 27 | DI4: 28 | DJ4: =CU4+CV4+CW4+CX4+CY4+CZ4+DA4+DB4+DD4 -> 11 | DK4: 12 | DL4: 2791885 | DM4: 4 | DN4: 1 | DO4: 0 | DP4: 0 | DQ4: =DP4+DO4 -> 0 | DR4: 1 | DS4: =M4+AA4+AO4+BC4+BK4+BO4+BT4+BX4+CS4+DJ4+DM4+DQ4 -> 1045 | DT4: 1 | DU4: =N4+AB4+AP4+BD4+BL4+BU4+BY4+CF4+CT4+DK4+DN4+DR4 -> 32
C7: ПРИМЕЧАНИЕ! ЗАПОЛНЯТЬ ТОЛЬКО ЗЕЛЕНЫЕ ЯЧЕЙКИ! ОСТАЛЬНЫЕ НЕ ТРОГАТЬ.
